fUSD/lending_fUSD_20241221
["ID","MTS","AMOUNT","RATE_DAILY","PERIOD"]
[346155443,1734759044536,-500.0,0.00021698,2]
[346155444,1734759044552,-1365.79,0.00021698,2]
[346155445,1734759044567,-500.0,0.00021698,2]
[346155446,1734759044582,-500.0,0.00021698,2]
[346155447,1734759044597,-691.04,0.00021698,2]
[346155448,1734759044611,-977.6,0.00021698,2]
[346155449,1734759044625,-989.17,0.00021698,2]
[346155450,1734759044640,-559.12,0.00021698,2]
[346155451,1734759044655,-500.0,0.00021698,2]
[346155452,1734759044670,-1327.88,0.00021698,2]
[346155453,1734759044685,-523.95,0.00021698,2]
[346155454,1734759044700,-500.0,0.00021698,2]
[346155455,1734759044714,-788.0,0.00021698,2]
[346155456,1734759044729,-825.4,0.00021698,2]
[346155457,1734759044744,-1096.69,0.00021698,2]
[346155458,1734759044759,-911.12,0.00021698,2]
[346155459,1734759044773,-500.0,0.00021698,2]
[346155460,1734759044789,-1262.28,0.00021698,2]
[346155461,1734759044803,-1495.78,0.00021698,2]
[346155462,1734759044818,-1495.78,0.00021698,2]
[346155463,1734759044832,-657.59,0.00021698,2]
[346155464,1734759044847,-189.90176571,0.00021698,2]
[346155465,1734759044860,-1395.49,0.00021698,2]
[346155466,1734759044876,-815.78,0.00021698,2]
[346155467,1734759044890,-1112.89,0.00021698,2]
[346155468,1734759044905,-999.14,0.00021698,2]
[346155469,1734759044919,-1176.68,0.00021698,2]
[346155470,1734759044935,-995.98,0.00021698,2]
[346155471,1734759045088,-500.0,0.00021698,2]
[346155472,1734759045150,-1026.95,0.00021698,2]
[346155473,1734759045159,-500.0,0.00021698,2]
[346155474,1734759045168,-526.19,0.00021698,2]
[346155475,1734759045178,-500.0,0.00021698,2]
[346155476,1734759045187,-500.0,0.00021698,2]
[346155477,1734759045196,-918.11,0.00021698,2]
[346155478,1734759045205,-500.0,0.00021698,2]
[346155479,1734759045214,-591.24,0.00021698,2]
[346155480,1734759045224,-500.0,0.00021698,2]
[346155481,1734759045233,-502.08,0.00021698,2]
[346155482,1734759045242,-500.0,0.00021698,2]
[346155483,1734759045252,-752.3,0.00021698,2]
[346155484,1734759045261,-500.0,0.00021698,2]
[346155485,1734759045270,-863.63,0.00021698,2]
[346155486,1734759045280,-1327.4,0.00021698,2]
[346155487,1734759045291,-500.0,0.00021698,2]
[346155488,1734759045301,-500.0,0.00021698,2]
[346155489,1734759045310,-500.0,0.00021698,2]
[346155490,1734759045319,-500.0,0.00021698,2]
[346155491,1734759045331,-591.97,0.00021698,2]
[346155492,1734759045341,-500.0,0.00021698,2]
[346155493,1734759045350,-500.0,0.00021698,2]
[346155494,1734759045359,-500.0,0.00021698,2]
[346155495,1734759045368,-1332.14,0.00021698,2]
[346155496,1734759045378,-500.0,0.00021698,2]
[346155497,1734759045387,-500.0,0.00021698,2]
[346155498,1734759045396,-1144.41,0.00021698,2]
[346155499,1734759045406,-896.93,0.00021698,2]
[346155500,1734759045416,-500.0,0.00021698,2]
[346155501,1734759045425,-1194.17,0.00021698,2]
[346155502,1734759045434,-500.78256594,0.00021698,2]
[346155504,1734759045443,-949.52,0.00021698,2]
[346155505,1734759045452,-1040.88,0.00021698,2]
[346155506,1734759045462,-500.71,0.00021698,2]
[346155508,1734759045472,-503.01842221,0.00021698,2]
[346155510,1734759045481,-1194.89,0.00021698,2]
[346155511,1734759045491,-2562704.04003449,0.00021699,3]
[346155512,1734759045500,-13190.66305482,0.00021699,3]
[346155514,1734759045509,-299342.48370156,0.00021699,2]
[346155516,1734759045518,-504.98532936,0.00021699,2]
[346155517,1734759045528,-500.0,0.00021699,2]
[346155519,1734759045537,-500.0,0.00021699,2]
[346155521,1734759045547,-500.0,0.00021699,2]
[346155523,1734759045556,-503.94995174,0.00021699,2]
[346155525,1734759045566,-500.0,0.00021699,2]
[346155526,1734759045576,-500.0,0.00021699,2]
[346155527,1734759045585,-500.0,0.00021699,2]
[346155529,1734759045594,-500.0,0.00021699,2]
[346155530,1734759045603,-611.09362932,0.00021699,2]
[346155531,1734759045613,-501.22583501,0.00021699,2]
[346155532,1734759045622,-500.0,0.00021699,2]
[346155533,1734759045631,-501.26558632,0.00021699,2]
[346155534,1734759045640,-500.0,0.00021699,2]
[346155535,1734759045650,-206.4945409,0.00021699,2]
[346155536,1734759045659,-500.0,0.00021699,2]
[346155537,1734759045668,-500.0,0.00021699,2]
[346155538,1734759045677,-500.0,0.00021699,2]
[346155539,1734759045686,-500.0,0.00021699,2]
[346155540,1734759045695,-500.0,0.00021699,2]
[346155541,1734759045705,-500.0,0.00021699,2]
[346155542,1734759045714,-500.30898175,0.00021699,2]
[346155543,1734759045723,-500.0,0.00021699,2]
[346155544,1734759045732,-532.43654608,0.00021699,2]
[346155545,1734759045742,-633.85482483,0.00021699,2]
[346155546,1734759045752,-504.12907216,0.00021699,2]
[346155547,1734759045765,-500.0,0.00021699,2]
[346155548,1734759045774,-500.0,0.00021699,2]
[346155549,1734759045784,-500.0,0.00021699,2]
[346155550,1734759045794,-374.86967054,0.00021699,2]
[346155551,1734759045805,-500.0,0.00021699,2]
[346155552,1734759045815,-500.0,0.00021699,2]
[346155553,1734759045824,-500.0,0.00021699,2]
[346155554,1734759045835,-501.38548435,0.00021699,2]
[346155555,1734759045844,-500.0,0.00021699,2]
[346155556,1734759045853,-500.0,0.00021699,2]
[346155557,1734759045863,-300.0,0.00021699,2]
[346155558,1734759045871,-500.0,0.00021699,2]
[346155559,1734759045881,-500.0,0.00021699,2]
[346155560,1734759045890,-500.0,0.00021699,2]
[346155561,1734759045899,-500.0,0.00021699,2]
[346155562,1734759045908,-500.0,0.00021699,2]
[346155563,1734759045917,-500.0,0.00021699,2]
[346155564,1734759045926,-500.0,0.00021699,2]
[346155565,1734759045935,-500.0,0.00021699,2]
[346155566,1734759045944,-557.18864657,0.00021699,2]
[346155567,1734759045954,-1041.83,0.00021699,2]
[346155568,1734759045963,-519.27328515,0.00021699,2]
[346155569,1734759045972,-500.0,0.00021699,2]
[346155570,1734759045981,-502.83992619,0.00021699,2]
[346155571,1734759045990,-500.0,0.00021699,2]
[346155572,1734759046000,-500.0,0.00021699,2]
[346155573,1734759046009,-500.0,0.00021699,2]
[346155574,1734759046018,-500.0,0.00021699,2]
[346155575,1734759046027,-500.0,0.00021699,2]
[346155576,1734759046036,-500.0,0.00021699,2]
[346155577,1734759046047,-500.39864042,0.00021699,2]
[346155578,1734759046057,-500.0,0.00021699,2]
[346155579,1734759046066,-500.0,0.00021699,2]
[346155580,1734759046075,-500.0,0.00021699,2]
[346155581,1734759046084,-601.64,0.00021699,2]
[346155582,1734759046093,-500.0,0.00021699,2]
[346155583,1734759046103,-500.72493896,0.00021699,2]
[346155584,1734759046112,-500.0,0.00021699,2]
[346155585,1734759046121,-1123.4,0.00021699,2]
[346155586,1734759046130,-500.0,0.00021699,2]
[346155587,1734759046139,-405.68014661,0.00021699,2]
[346155588,1734759046148,-500.0,0.00021699,2]
[346155589,1734759046157,-500.0,0.00021699,2]
[346155590,1734759046166,-500.0,0.00021699,2]
[346155591,1734759046175,-500.0,0.00021699,2]
[346155592,1734759046185,-583.29,0.00021699,2]
[346155593,1734759046194,-501.10341853,0.00021699,2]
[346155594,1734759046204,-501.81098224,0.00021699,2]
[346155595,1734759046213,-500.0,0.00021699,2]
[346155596,1734759046222,-500.0,0.00021699,2]
[346155597,1734759046231,-501.33025488,0.00021699,2]
[346155598,1734759046240,-193.04942653,0.00021699,2]
[346155599,1734759046250,-500.0,0.00021699,2]
[346155600,1734759046259,-586.75301889,0.00021699,2]
[346155601,1734759046268,-500.0,0.00021699,2]
[346155602,1734759046277,-500.0,0.00021699,2]
[346155603,1734759046286,-500.0,0.00021699,2]
[346155604,1734759046297,-500.0,0.00021699,2]
[346155605,1734759046306,-500.0,0.00021699,2]
[346155606,1734759046315,-500.0,0.00021699,2]
[346155607,1734759046324,-500.0,0.00021699,2]
[346155608,1734759046333,-502.45908207,0.00021699,2]
[346155609,1734759046342,-500.0,0.00021699,2]
[346155610,1734759046352,-526.09,0.00021699,2]
[346155611,1734759046361,-500.0,0.00021699,2]
[346155612,1734759046370,-500.0,0.00021699,2]
[346155613,1734759046379,-500.0,0.00021699,2]
[346155614,1734759046388,-500.0,0.00021699,2]
[346155615,1734759046397,-500.0,0.00021699,2]
[346155616,1734759046407,-500.0,0.00021699,2]
[346155617,1734759046417,-500.0,0.00021699,2]
[346155618,1734759046426,-500.0,0.00021699,2]
[346155619,1734759046435,-500.0,0.00021699,2]
[346155620,1734759046444,-505.01,0.00021699,2]
[346155621,1734759046453,-500.0,0.00021699,2]
[346155622,1734759046462,-500.0,0.00021699,2]
[346155623,1734759046471,-500.0,0.00021699,2]
[346155624,1734759046480,-500.0,0.00021699,2]
[346155625,1734759046489,-615.3,0.00021699,2]
[346155626,1734759046498,-500.0,0.00021699,2]
[346155627,1734759046507,-500.0,0.00021699,2]
[346155628,1734759046516,-500.0,0.00021699,2]
[346155629,1734759046526,-500.0,0.00021699,2]
[346155630,1734759046535,-500.0,0.00021699,2]
[346155631,1734759046544,-500.0,0.00021699,2]
[346155632,1734759046553,-500.0,0.00021699,2]
[346155633,1734759046562,-502.88218401,0.00021699,2]
[346155634,1734759046571,-500.0,0.00021699,2]
[346155635,1734759046580,-500.0,0.00021699,2]
[346155636,1734759046589,-500.0,0.00021699,2]
[346155637,1734759046598,-500.0,0.00021699,2]
[346155638,1734759046607,-500.0,0.00021699,2]
[346155639,1734759046616,-500.0,0.00021699,2]
[346155640,1734759046625,-504.16437675,0.00021699,2]
[346155641,1734759046634,-500.0,0.00021699,2]
[346155642,1734759046643,-500.0,0.00021699,2]
[346155643,1734759046652,-500.0,0.00021699,2]
[346155644,1734759046662,-500.0,0.00021699,2]
[346155645,1734759046671,-521.19,0.00021699,2]
[346155646,1734759046680,-500.0,0.00021699,2]
[346155647,1734759046688,-500.0,0.00021699,2]
[346155648,1734759046698,-524.7,0.00021699,2]
[346155649,1734759046707,-516.1219501,0.00021699,10]
[346155650,1734759046715,-500.0,0.00021699,2]
[346155651,1734759046725,-500.0,0.00021699,2]
[346155652,1734759046734,-500.0,0.00021699,2]
[346155653,1734759046744,-500.0,0.00021699,2]
[346155654,1734759046753,-635.15,0.00021699,2]
[346155655,1734759046765,-500.0,0.00021699,2]
[346155656,1734759046775,-500.0,0.00021699,2]
[346155657,1734759046785,-505.28349388,0.00021699,2]
[346155658,1734759046794,-500.0,0.00021699,2]
[346155659,1734759046804,-635.58982084,0.00021699,2]
[346155660,1734759046814,-500.0,0.00021699,2]
[346155661,1734759046823,-500.0,0.00021699,2]
[346155662,1734759046833,-500.0,0.00021699,2]
[346155663,1734759046843,-500.0,0.00021699,2]
[346155664,1734759046852,-500.0,0.00021699,2]
[346155665,1734759046861,-899.32,0.00021699,2]
[346155666,1734759046870,-502.03225041,0.00021699,2]
[346155667,1734759046879,-500.0,0.00021699,2]
[346155668,1734759046889,-500.0,0.00021699,2]
[346155669,1734759046899,-502.30521948,0.00021699,2]
[346155670,1734759046908,-567.94,0.00021699,2]
[346155671,1734759046917,-549.62,0.00021699,2]
[346155672,1734759046927,-500.0,0.00021699,2]
[346155673,1734759046935,-500.0,0.00021699,2]
[346155674,1734759046945,-607.68,0.00021699,2]
[346155675,1734759046954,-500.0,0.00021699,2]
[346155676,1734759046963,-565.33,0.00021699,2]
[346155677,1734759046972,-500.0,0.00021699,2]
[346155678,1734759046981,-500.0,0.00021699,2]
[346155679,1734759046990,-572.14,0.00021699,2]
[346155680,1734759046999,-500.0,0.00021699,2]
[346155681,1734759047008,-503.75652932,0.00021699,2]
[346155682,1734759047017,-500.0,0.00021699,2]
[346155683,1734759047027,-1066.61,0.00021699,2]
[346155684,1734759047035,-500.0,0.00021699,2]
[346155685,1734759047045,-540.39,0.00021699,2]
[346155686,1734759047054,-937.62,0.00021699,2]
[346155687,1734759047063,-500.0,0.00021699,2]
[346155688,1734759047072,-500.0,0.00021699,2]
[346155689,1734759047081,-500.0,0.00021699,2]
[346155690,1734759047091,-500.0,0.00021699,2]
[346155691,1734759047099,-500.0,0.00021699,2]
[346155692,1734759047108,-500.0,0.00021699,2]
[346155693,1734759047117,-500.0,0.00021699,2]
[346155694,1734759047127,-500.0,0.00021699,2]
[346155695,1734759047136,-500.0,0.00021699,2]
[346155696,1734759047145,-500.0,0.00021699,2]
[346155697,1734759047155,-500.0,0.00021699,2]
[346155698,1734759047163,-500.0,0.00021699,2]
[346155699,1734759047173,-500.0,0.00021699,2]
[346155700,1734759047182,-500.0,0.00021699,2]
[346155701,1734759047191,-500.0,0.00021699,2]
[346155702,1734759047200,-500.0,0.00021699,2]
[346155703,1734759047210,-500.0,0.00021699,2]
[346155704,1734759047219,-500.0,0.00021699,2]
[346155705,1734759047228,-1041.16,0.00021699,2]
[346155706,1734759047237,-500.0,0.00021699,2]
[346155707,1734759047247,-500.0,0.00021699,2]
[346155708,1734759047256,-500.0,0.00021699,2]
[346155709,1734759047265,-500.0,0.00021699,2]
[346155710,1734759047274,-500.0,0.00021699,2]
[346155711,1734759047283,-500.0,0.00021699,2]
[346155712,1734759047293,-502.36985725,0.00021699,2]
[346155713,1734759047302,-804.28,0.00021699,2]
[346155714,1734759047311,-616.06,0.00021699,2]
[346155715,1734759047320,-500.0,0.00021699,2]
[346155716,1734759047329,-500.0,0.00021699,2]
[346155717,1734759047339,-500.0,0.00021699,2]
[346155718,1734759047348,-856.75,0.00021699,2]
[346155719,1734759047358,-500.0,0.00021699,2]
[346155720,1734759047367,-500.0,0.00021699,2]
[346155721,1734759047378,-500.0,0.00021699,2]
[346155722,1734759047389,-506.49187406,0.00021699,2]
[346155723,1734759047399,-500.0,0.00021699,2]
[346155724,1734759047407,-500.0,0.00021699,2]
[346155725,1734759047419,-792.54,0.00021699,2]
[346155726,1734759047428,-500.0,0.00021699,2]
[346155727,1734759047437,-500.0,0.00021699,2]
[346155728,1734759047448,-297.87709975,0.00021699,2]
[346155729,1734759047457,-500.0,0.00021699,2]
[346155730,1734759047467,-500.0,0.00021699,2]
[346155731,1734759047477,-500.0,0.00021699,2]
[346155732,1734759047486,-485.39819725,0.00021699,2]
[346155733,1734759047495,-500.0,0.00021699,2]
[346155734,1734759047647,-500.0,0.00021699,2]
[346155735,1734759047657,-500.0,0.00021699,2]
[346155736,1734759047666,-500.0,0.00021699,2]
[346155737,1734759047675,-500.0,0.00021699,2]
[346155738,1734759047685,-845.99,0.00021699,2]
[346155739,1734759047695,-747.13,0.00021699,2]
[346155740,1734759047704,-500.0,0.00021699,2]
[346155741,1734759047713,-567.45,0.00021699,2]
[346155742,1734759047722,-849.25,0.00021699,2]
[346155743,1734759047731,-1042.88,0.00021699,2]
[346155744,1734759047741,-500.0,0.00021699,2]
[346155745,1734759047750,-500.0,0.00021699,2]
[346155746,1734759047762,-500.0,0.00021699,2]
[346155747,1734759047772,-618.02,0.00021699,2]
[346155748,1734759047781,-616.43,0.00021699,2]
[346155749,1734759047791,-500.0,0.00021699,2]
[346155750,1734759047802,-500.0,0.00021699,2]
[346155751,1734759047811,-500.0,0.00021699,2]
[346155752,1734759047821,-500.0,0.00021699,2]
[346155753,1734759047830,-817.88,0.00021699,2]
[346155754,1734759047841,-500.0,0.00021699,2]
[346155755,1734759047850,-500.0,0.00021699,2]
[346155756,1734759047861,-500.0,0.00021699,2]
[346155757,1734759047871,-500.0,0.00021699,2]
[346155758,1734759047880,-866.83,0.00021699,2]
[346155759,1734759047891,-500.0,0.00021699,2]
[346155760,1734759047901,-500.0,0.00021699,2]
[346155761,1734759047910,-500.0,0.00021699,2]
[346155762,1734759047919,-500.0,0.00021699,2]
[346155763,1734759047929,-1358.5,0.00021699,2]
[346155764,1734759047938,-500.0,0.00021699,2]
[346155765,1734759047947,-500.0,0.00021699,2]
[346155766,1734759047958,-500.0,0.00021699,2]
[346155767,1734759047967,-500.0,0.00021699,2]
[346155768,1734759047977,-500.0,0.00021699,2]
[346155769,1734759047986,-500.0,0.00021699,2]
[346155770,1734759047996,-500.0,0.00021699,2]
[346155771,1734759048005,-500.0,0.00021699,2]
[346155772,1734759048014,-795.64,0.00021699,2]
[346155773,1734759048023,-500.0,0.00021699,2]
[346155774,1734759048033,-500.0,0.00021699,2]
[346155775,1734759048043,-508.08727053,0.00021699,2]
[346155776,1734759048053,-804.57,0.00021699,2]
[346155777,1734759048062,-500.0,0.00021699,2]
[346155778,1734759048071,-500.0,0.00021699,2]
[346155779,1734759048080,-558.21878812,0.00021699,2]
[346155780,1734759048089,-500.0,0.00021699,2]
[346155781,1734759048099,-500.0,0.00021699,2]
[346155782,1734759048108,-500.0,0.00021699,2]
[346155783,1734759048118,-500.0,0.00021699,2]
[346155784,1734759048128,-500.0,0.00021699,2]
[346155785,1734759048137,-500.0,0.00021699,2]
[346155786,1734759048146,-500.0,0.00021699,2]
[346155787,1734759048156,-500.0,0.00021699,2]
[346155788,1734759048166,-849.07,0.00021699,2]
[346155789,1734759048175,-637.36,0.00021699,2]
[346155790,1734759048185,-637.36,0.00021699,2]
[346155791,1734759048200,-637.36,0.00021699,2]
[346155792,1734759048209,-637.36,0.00021699,2]
[346155793,1734759048218,-637.36,0.00021699,2]
[346155794,1734759048227,-637.36,0.00021699,2]
[346155795,1734759048238,-637.36,0.00021699,2]
[346155796,1734759048247,-637.36,0.00021699,2]
[346155797,1734759048256,-637.36,0.00021699,2]
[346155798,1734759048265,-500.0,0.00021699,2]
[346155799,1734759048274,-637.36,0.00021699,2]
[346155800,1734759048283,-637.36,0.00021699,2]
[346155801,1734759048293,-637.36,0.00021699,2]
[346155802,1734759048303,-637.36,0.00021699,2]
[346155803,1734759048312,-637.36,0.00021699,2]
[346155804,1734759048321,-637.36,0.00021699,2]
[346155805,1734759048330,-637.36,0.00021699,2]
[346155806,1734759048339,-637.36,0.00021699,2]
[346155807,1734759048349,-500.0,0.00021699,2]
[346155808,1734759048358,-500.0,0.00021699,2]
[346155809,1734759048368,-500.0,0.00021699,2]
[346155810,1734759048377,-500.0,0.00021699,2]
[346155811,1734759048386,-500.0,0.00021699,2]
[346155812,1734759048396,-663.79,0.00021699,2]
[346155813,1734759048405,-1495.78,0.00021699,2]
[346155814,1734759048414,-500.0,0.00021699,2]
[346155815,1734759048422,-500.0,0.00021699,2]
[346155816,1734759048432,-500.0,0.00021699,2]
[346155817,1734759048441,-500.0,0.00021699,2]
[346155818,1734759048450,-500.0,0.00021699,2]
[346155819,1734759048459,-500.0,0.00021699,2]
[346155820,1734759048468,-500.0,0.00021699,2]
[346155821,1734759048477,-500.0,0.00021699,2]
[346155822,1734759048486,-500.0,0.00021699,2]
[346155823,1734759048495,-810.18,0.00021699,2]
[346155824,1734759048504,-500.0,0.00021699,2]
[346155825,1734759048513,-500.0,0.00021699,2]
[346155826,1734759048522,-500.0,0.00021699,2]
[346155827,1734759048532,-500.0,0.00021699,2]
[346155828,1734759048541,-834.36,0.00021699,2]
[346155829,1734759048550,-500.0,0.00021699,2]
[346155830,1734759048560,-549.07114102,0.00021699,2]
[346155831,1734759048569,-500.0,0.00021699,2]
[346155832,1734759048578,-500.0,0.00021699,2]
[346155833,1734759048587,-500.0,0.00021699,2]
[346155834,1734759048597,-1105.08,0.00021699,2]
[346155835,1734759048606,-500.0,0.00021699,2]
[346155836,1734759048616,-500.0,0.00021699,2]
[346155837,1734759048626,-500.0,0.00021699,2]
[346155838,1734759048635,-828.1,0.00021699,2]
[346155839,1734759048645,-500.0,0.00021699,2]
[346155840,1734759048654,-500.0,0.00021699,2]
[346155841,1734759048663,-507.64741232,0.00021699,2]
[346155842,1734759048673,-522.37486953,0.00021699,2]
[346155843,1734759048683,-551.49,0.00021699,2]
[346155844,1734759048693,-506.64195676,0.00021699,2]
[346155845,1734759048702,-533.45,0.00021699,2]
[346155846,1734759048712,-500.0,0.00021699,2]
[346155847,1734759048721,-587.98,0.00021699,2]
[346155848,1734759048731,-500.0,0.00021699,2]
[346155849,1734759048740,-500.0,0.00021699,2]
[346155850,1734759048750,-500.0,0.00021699,2]
[346155851,1734759048762,-500.0,0.00021699,2]
[346155852,1734759048772,-500.0,0.00021699,2]
[346155853,1734759048781,-500.0,0.00021699,2]
[346155854,1734759048791,-500.0,0.00021699,2]
[346155855,1734759048803,-500.0,0.00021699,2]
[346155856,1734759048812,-500.0,0.00021699,2]
[346155857,1734759048822,-500.0,0.00021699,2]
[346155858,1734759048831,-500.0,0.00021699,2]
[346155859,1734759048841,-511.14,0.00021699,2]
[346155860,1734759048851,-931.8,0.00021699,2]
[346155861,1734759048860,-548.65,0.00021699,2]
[346155862,1734759048869,-500.0,0.00021699,2]
[346155863,1734759048877,-500.0,0.00021699,2]
[346155864,1734759048886,-1039.24,0.00021699,2]
[346155865,1734759048895,-999.0,0.00021699,2]
[346155866,1734759048904,-500.96200082,0.00021699,2]
[346155867,1734759048913,-500.0,0.00021699,2]
[346155868,1734759048922,-502.73373815,0.00021699,2]
[346155869,1734759048931,-500.0,0.00021699,2]
[346155870,1734759048940,-500.0,0.00021699,2]
[346155871,1734759048950,-724.61,0.00021699,2]
[346155872,1734759048959,-502.83792077,0.00021699,2]
[346155873,1734759048968,-500.0,0.00021699,2]
[346155874,1734759048977,-500.0,0.00021699,2]
[346155875,1734759048986,-500.0,0.00021699,2]
[346155876,1734759048996,-500.0,0.00021699,2]
[346155877,1734759049005,-312.5398158,0.00021699,2]
[346155878,1734759049014,-500.0,0.00021699,2]
[346155879,1734759049023,-500.0,0.00021699,2]
[346155880,1734759049033,-500.0,0.00021699,2]
[346155881,1734759049042,-500.0,0.00021699,2]
[346155882,1734759049053,-500.0,0.00021699,2]
[346155883,1734759049063,-1068.05,0.00021699,2]
[346155884,1734759049072,-500.0,0.00021699,2]
[346155885,1734759049082,-500.0,0.00021699,2]
[346155886,1734759049091,-151.92020346,0.00021699,2]
[346155887,1734759049100,-500.0,0.00021699,2]
[346155888,1734759049109,-500.0,0.00021699,2]
[346155889,1734759049119,-577.26831856,0.00021699,2]
[346155890,1734759049128,-5000.0,0.00021699,2]
[346155891,1734759049137,-538.37,0.00021699,2]
[346155892,1734759049147,-1130.34,0.00021699,2]
[346155893,1734759049156,-500.0,0.00021699,2]
[346155894,1734759049165,-500.0,0.00021699,2]
[346155895,1734759049174,-500.0,0.00021699,2]
[346155896,1734759049184,-500.0,0.00021699,2]
[346155897,1734759049193,-1332.14,0.00021699,2]
[346155898,1734759049203,-1332.14,0.00021699,2]
[346155899,1734759049212,-1332.14,0.00021699,2]
[346155900,1734759049222,-1332.14,0.00021699,2]
[346155901,1734759049231,-1332.14,0.00021699,2]
[346155902,1734759049239,-1332.14,0.00021699,2]
[346155903,1734759049249,-1332.14,0.00021699,2]
[346155904,1734759049258,-1332.14,0.00021699,2]
[346155905,1734759049268,-1332.14,0.00021699,2]
[346155906,1734759049277,-1332.14,0.00021699,2]
[346155907,1734759049286,-1332.14,0.00021699,2]
[346155908,1734759049295,-1332.14,0.00021699,2]
[346155909,1734759049305,-1332.14,0.00021699,2]
[346155910,1734759049314,-1332.14,0.00021699,2]
[346155911,1734759049323,-1332.14,0.00021699,2]
[346155912,1734759049333,-1308.45,0.00021699,2]
[346155913,1734759049343,-1332.14,0.00021699,2]
[346155914,1734759049352,-1332.14,0.00021699,2]
[346155915,1734759049362,-1332.14,0.00021699,2]
[346155916,1734759049371,-1332.36438031,0.00021699,2]
[346155917,1734759049380,-500.0,0.00021699,2]
[346155918,1734759049389,-500.0,0.00021699,2]
[346155919,1734759049398,-500.0,0.00021699,2]
[346155920,1734759049408,-500.0,0.00021699,2]
[346155921,1734759049417,-500.0,0.00021699,2]
[346155922,1734759049426,-560.67,0.00021699,2]
[346155923,1734759049435,-1105.86,0.00021699,2]
[346155924,1734759049444,-500.0,0.00021699,2]
[346155925,1734759049453,-934.47,0.00021699,2]
[346155926,1734759049462,-500.0,0.00021699,2]
[346155927,1734759049472,-500.0,0.00021699,2]
[346155928,1734759049481,-500.0,0.00021699,2]
[346155929,1734759049490,-500.0,0.00021699,2]
[346155930,1734759049499,-500.0,0.00021699,2]
[346155931,1734759049508,-1330.78,0.00021699,2]
[346155932,1734759049517,-500.0,0.00021699,2]
[346155933,1734759049527,-500.0,0.00021699,2]
[346155934,1734759049536,-1336.92,0.00021699,2]
[346155935,1734759049545,-500.0,0.00021699,2]
[346155936,1734759049555,-980.7,0.00021699,2]
[346155937,1734759049564,-500.0,0.00021699,2]
[346155938,1734759049573,-528.34,0.00021699,2]
[346155939,1734759049582,-500.0,0.00021699,2]
[346155940,1734759049591,-500.0,0.00021699,2]
[346155941,1734759049599,-1593331.4521,0.000217,2]
[346155942,1734759049609,-7231.29127318,0.000217,2]
[346155943,1734759049618,-800.0,0.0002171,2]
[346155944,1734759049628,-500.0,0.0002171,2]
[346155945,1734759049637,-976.77,0.00021711,2]
[346155946,1734759049647,-1495.78,0.00021715,2]
[346155947,1734759049656,-107068.6271043,0.0002176,2]
[346155948,1734759049665,-253.93,0.00021768,15]
[346155949,1734759049675,-927.91,0.00021772,2]
[346155950,1734759049684,-500.0,0.00021772,2]
[346155951,1734759049693,-1495.83,0.00021772,2]
[346155952,1734759049703,-2658.85,0.00021772,2]